Workbook

Sheet Sheet2
A1: 云南工商学院学生公寓1#、2#、3#、4#、5#、24#窗帘采购明细
A2: 序号 | B2: 楼栋 | C2: 楼层 | D2: 测量尺寸 | E2: 单间面积（㎡） | F2: 数量（间） | G2: 总面积（㎡） | H2: 备注
A3: 1 | B3: 1栋 | C3: 1楼 | D3: 宽2.08m*高1.83m | E3: =2.08*1.83 -> 3.81 | F3: 21 | G3: =E3*F3 -> 79.93
C4: 2-5楼 | D4: 宽2.08m*高1.65m | E4: =2.08*1.65 -> 3.43 | F4: 112 | G4: 384.38
A5: 2 | B5: 2栋 | C5: 1楼 | D5: 宽2.08m*高1.83m | E5: =2.08*1.83 -> 3.81 | F5: 21 | G5: 79.93
C6: 2-5楼 | D6: 宽2.08m*高1.65m | E6: =2.08*1.65 -> 3.43 | F6: 112 | G6: 384.38
A7: 3 | B7: 3栋 | C7: 1楼 | D7: 宽1.83m*高1.85m | E7: =1.83*1.85 -> 3.39 | F7: 23 | G7: 77.87
C8: 2-5楼 | D8: 宽2.69m*高1.65m | E8: =2.69*1.65 -> 4.44 | F8: 120 | G8: 532.62
A9: 4 | B9: 4栋 | C9: 1楼 | D9: 宽2.09m*高1.83m | E9: =2.09*1.83 -> 3.82 | F9: 19 | G9: 72.67
C10: 2-5楼 | D10: 宽2.11m*高1.60m | E10: =2.11*1.6 -> 3.38 | F10: 104 | G10: 351.10
A11: 5 | B11: 5栋 | C11: 1楼 | D11: 宽2.10m*高1.81m | E11: =2.1*1.81 -> 3.80 | F11: 17 | G11: 64.62
C12: 2-5楼 | D12: 宽2.08m*高1.65m | E12: =2.08*1.65 -> 3.43 | F12: 96 | G12: 329.47
A13: 6 | B13: 24栋 | C13: 1-5楼 | D13: 宽2.11m*高1.75m | E13: =2.11*1.75 -> 3.69 | F13: 123 | G13: 454.18
A14: 7 | B14: 功能间 | C14: 1-5栋、24栋1楼 | D14: 宽3.50m*高2.00m | E14: =3.5*2 -> 7.00 | F14: 30 | G14: 210.00
A15: 合计： | F15: =SUM(F3:F14) -> 798 | G15: =SUM(G3:G13) -> 2811.16
